bitfinex/quotes_SOLUSD_20241223
["timestamp","ask_amount","ask_price","bid_price","bid_amount"]
[1734975893810,1.5515,184.87,184.75,33.84726091]
[1734975894061,1.5515,184.87,184.77,20.44105091]
[1734975894254,1.5515,184.87,184.8,0.12549]
[1734975894548,1.5515,184.87,184.8,20.31556091]
[1734975894707,1.5515,184.87,184.79,20.31556091]
[1734975894911,1.5515,184.87,184.77,20.31556091]
[1734975895333,1.5515,184.87,184.76,44.09244491]
[1734975895615,1.5515,184.87,184.77,20.31556091]
[1734975896134,1.5515,184.87,184.76,20.31556091]
[1734975896842,1.5515,184.87,184.75,33.84726091]
[1734975897018,1.5515,184.87,184.76,20.31556091]
[1734975897537,1.5515,184.87,184.75,33.84726091]
[1734975897743,23.902374,184.86,184.73,20.31556091]
[1734975897923,20.0,184.83,184.73,20.31556091]
[1734975898841,20.0,184.83,184.74,20.31556091]
[1734975899136,20.0,184.83,184.72,33.84936091]
[1734975899745,20.0,184.83,184.73,20.31556091]
[1734975900343,20.0,184.83,184.74,20.31556091]
[1734975900739,20.0,184.83,184.73,20.31556091]
[1734975901518,20.0,184.83,184.75,20.31556091]
[1734975901843,20.0,184.83,184.74,20.31556091]
[1734975902141,1.5515,184.87,184.77,12.67526221]
[1734975902340,1.5515,184.87,184.81,12.67526221]
[1734975902530,1.5828,184.92,184.85,12.67526221]
[1734975902938,1.5828,184.92,184.86,12.67526221]
[1734975903135,1.5828,184.92,184.84,12.67526221]
[1734975903335,1.5828,184.92,184.82,0.81131285]
[1734975903336,1.5828,184.92,184.81,12.67526221]
[1734975903639,0.12549,184.91,184.76,12.67526221]
[1734975904034,20.0,184.88,184.77,12.67526221]
[1734975904241,20.0,184.88,184.8,20.27807673]
[1734975904422,20.0,184.88,184.82,20.27807673]
[1734975904619,1.5828,184.92,184.82,20.27807673]
[1734975904839,1.5828,184.92,184.85,20.27807673]
[1734975905239,1.5828,184.92,184.87,20.27807673]
[1734975905445,3.6077,184.95,184.87,20.27807673]
[1734975905631,0.12549,184.94,184.82,20.27807673]
[1734975905836,0.12549,184.94,184.81,20.27807673]
[1734975906555,43.902374,184.94,184.82,20.27807673]
[1734975907435,20.0,184.94,184.85,20.27807673]
[1734975907841,20.0,184.94,184.86,20.27807673]
[1734975908153,20.0,184.94,184.84,20.27807673]
[1734975908649,20.0,184.94,184.85,20.27807673]
[1734975909027,3.6077,184.95,184.88,20.27807673]
[1734975909438,1.5919,184.97,184.88,20.27807673]
[1734975910129,1.5919,184.97,184.86,20.27807673]
[1734975910936,20.0,184.96,184.86,20.27807673]
[1734975911354,20.0,184.96,184.87,20.27807673]
[1734975911545,20.0,184.96,184.88,20.27807673]
[1734975911926,20.0,184.96,184.87,33.80057673]
[1734975912126,20.0,184.96,184.87,13.5225]
[1734975912456,20.0,184.96,184.87,33.80057673]
[1734975912626,20.0,184.96,184.88,20.27807673]
[1734975912825,1.5919,184.97,184.89,20.27807673]
[1734975913134,0.6834123,185.02,184.93,20.27807673]
[1734975913455,0.6834123,185.02,184.94,20.27807673]
[1734975913632,0.6834123,185.02,184.93,20.27807673]
[1734975913964,0.6834123,185.02,184.92,20.27807673]
[1734975914170,0.6834123,185.02,184.93,20.27807673]
[1734975914366,20.6834123,185.02,184.94,20.27807673]
[1734975914569,0.6834123,185.02,184.97,20.27807673]
[1734975915053,0.6834123,185.02,184.92,15.0329]
[1734975915054,0.6834123,185.02,184.96,20.27807673]
[1734975915356,0.6834123,185.02,184.92,15.0329]
[1734975915357,0.6834123,185.02,184.92,33.79737673]
[1734975915870,0.6834123,185.02,184.95,20.27807673]
[1734975916165,0.6834123,185.02,184.96,0.12549]
[1734975916331,0.6834123,185.02,184.96,33.79447673]
[1734975916538,0.6834123,185.02,184.96,13.5164]
[1734975917933,0.6834123,185.02,184.94,20.27807673]
[1734975918139,0.6834123,185.02,184.92,13.5193]
[1734975918140,0.6834123,185.02,184.95,20.27807673]
[1734975918475,0.6834123,185.02,184.93,20.40356673]
[1734975918832,0.6834123,185.02,184.95,20.27807673]
[1734975919042,0.6834123,185.02,184.97,20.27807673]
[1734975919245,0.6834123,185.02,184.98,20.27807673]
[1734975919444,0.6834123,185.02,184.99,20.27807673]
[1734975919624,0.6834123,185.02,184.97,0.12549]
[1734975919625,0.6834123,185.02,185.0,20.27807673]
[1734975919827,0.6834123,185.02,184.99,20.27807673]
[1734975921767,1.5904,185.19,185.07,0.12549]
[1734975921933,1.5904,185.19,185.11,20.27807673]
[1734975922238,1.5904,185.19,185.06,0.81004273]
[1734975922444,1.5904,185.19,185.06,20.27807673]
[1734975922856,1.5904,185.19,185.08,20.27807673]
[1734975924572,20.0,185.17,185.08,20.27807673]
[1734975924949,20.0,185.17,185.05,33.78757673]
[1734975925166,20.0,185.17,185.07,20.27807673]
[1734975925555,20.0,185.17,185.08,20.27807673]
[1734975925761,20.0,185.17,185.07,20.27807673]
[1734975926077,20.0,185.17,185.08,20.27807673]
[1734975926287,20.0,185.17,185.07,20.27807673]
[1734975926451,20.0,185.17,185.05,33.78757673]
[1734975926642,20.0,185.13,185.03,20.27807673]
[1734975927043,20.0,185.13,185.02,20.27807673]
[1734975927467,20.0,185.09,184.99,20.27807673]
[1734975927669,20.0,185.08,184.98,33.79297673]
[1734975927863,20.0,185.08,184.98,13.5149]
[1734975928171,20.0,185.08,184.99,20.27807673]
[1734975928569,20.0,185.08,184.97,21.08869727]
[1734975928867,5.2318,185.11,184.95,13.5171]
[1734975928868,20.0,185.04,184.95,13.5171]
[1734975929246,20.0,185.04,184.92,33.79727673]
[1734975929577,20.0,185.0,184.91,20.27807673]
[1734975930087,20.0,185.0,184.92,20.27807673]
[1734975930491,20.0,185.0,184.91,20.27807673]
[1734975930693,20.0,185.0,184.9,20.27807673]
[1734975931360,23.776884,184.99,184.89,20.27807673]
[1734975931764,25.1084,185.0,184.91,20.27807673]
[1734975932089,25.1084,185.0,184.92,20.27807673]
[1734975932383,25.1084,185.0,184.91,20.27807673]
[1734975932682,1.5007,185.0,184.92,20.27807673]
[1734975933110,1.5007,185.0,184.91,20.27807673]
[1734975933405,1.5007,185.0,184.9,20.27807673]
[1734975933559,23.776884,184.99,184.89,20.27807673]
[1734975934707,5.2455,185.05,184.93,20.27807673]
[1734975934987,20.0,185.01,184.92,20.27807673]
[1734975935690,20.0,185.01,184.93,20.27807673]
[1734975936186,5.2455,185.05,184.95,20.27807673]
[1734975936400,5.2455,185.05,184.97,20.27807673]
[1734975936685,5.2455,185.1,185.0,20.27807673]
[1734975936893,5.2455,185.1,185.02,20.27807673]
[1734975937596,5.2455,185.1,185.01,20.27807673]
[1734975937969,5.2455,185.1,185.02,20.27807673]
[1734975939486,5.2455,185.1,185.01,20.27807673]
[1734975939706,23.902374,185.09,184.98,20.27807673]
[1734975940188,23.776884,185.09,184.98,20.27807673]
[1734975940375,20.0,185.06,184.98,20.27807673]
[1734975940897,20.0,185.06,184.96,20.27807673]
[1734975941471,20.0,185.06,184.97,20.27807673]
[1734975942087,20.0,185.06,184.98,20.27807673]
[1734975942296,20.0,185.07,184.99,20.27807673]
[1734975942797,5.2455,185.1,185.01,20.27807673]
[1734975943098,1.6378,185.1,185.02,20.27807673]
[1734975943296,1.6378,185.1,185.04,20.27807673]
[1734975943473,3.6077,185.14,185.04,20.27807673]
[1734975943474,5.1741,185.14,185.04,20.27807673]
[1734975943674,5.1741,185.14,185.01,20.27807673]
[1734975943874,5.1741,185.14,185.0,40.27807673]
[1734975944072,0.12549,185.13,185.0,40.27807673]
[1734975944282,0.12549,185.13,185.0,53.79137673]
[1734975944699,20.0,185.11,185.0,13.5133]
[1734975944905,20.0,185.11,184.99,20.27807673]
[1734975944906,23.902374,185.1,184.99,20.27807673]
[1734975945710,20.0,185.07,184.99,20.27807673]
[1734975946009,20.0,185.07,184.98,20.27807673]
[1734975946711,20.0,185.07,184.99,20.27807673]
[1734975946876,20.0,185.07,184.98,20.27807673]
[1734975948692,20.0,185.07,184.96,33.79387673]
[1734975950192,20.0,185.07,184.98,20.27807673]
[1734975952683,20.0,185.07,184.96,33.79387673]
[1734975952882,25.530574,185.06,184.94,40.27807673]
[1734975953199,20.0,185.03,184.93,13.5185]
[1734975953514,20.0,184.99,184.9,13.5208]
[1734975954018,1.5031,184.98,184.9,13.5208]
[1734975955003,1.5031,184.98,184.88,20.27807673]
[1734975955207,1.5031,184.98,184.86,33.80107673]
[1734975955412,23.776884,184.97,184.86,13.523]
[1734975955582,3.6077,184.96,184.86,13.523]
[1734975955904,3.6077,184.96,184.82,6.579]
[1734975955905,23.776884,184.93,184.82,33.80407673]
[1734975956076,23.776884,184.93,184.83,20.27807673]
[1734975956279,20.0,184.95,184.86,20.27807673]
[1734975956708,20.0,184.95,184.87,20.27807673]
[1734975956880,1.5031,184.98,184.9,20.27807673]
[1734975957077,21.5031,184.98,184.9,20.27807673]
[1734975957291,21.5031,184.98,184.89,20.27807673]
[1734975957910,1.5031,184.98,184.9,20.27807673]
[1734975958405,1.5031,184.98,184.89,20.27807673]
[1734975958705,3.6077,185.01,184.93,20.27807673]
[1734975958906,3.6077,185.01,184.92,20.27807673]
[1734975959107,0.12549,185.0,184.89,33.79917673]
[1734975959308,0.12549,185.0,184.89,13.5211]
[1734975960092,23.902374,185.0,184.89,33.79917673]
[1734975960310,20.0,184.97,184.89,13.5211]
[1734975960511,20.0,184.97,184.89,33.79917673]
[1734975960807,20.0,184.97,184.89,13.5211]
[1734975961018,20.0,184.97,184.86,13.5237]
[1734975961308,20.0,184.97,184.89,20.27807673]
[1734975961620,20.0,184.97,184.86,13.5237]
[1734975961621,23.6077,185.01,184.9,20.27807673]
[1734975961905,23.6077,185.01,184.93,20.27807673]
[1734975962115,3.6077,185.01,184.92,20.27807673]
[1734975963542,23.6077,185.01,184.93,20.27807673]
[1734975963885,23.6077,185.01,184.92,20.27807673]
[1734975966112,23.776884,185.0,184.91,13.5194]
[1734975967017,23.6077,185.01,184.92,20.27807673]
[1734975967216,23.6077,185.01,184.93,20.27807673]
[1734975967419,23.6077,185.01,184.92,20.27807673]
[1734975967918,23.6077,185.01,184.93,20.27807673]
[1734975968523,1.6442,185.04,184.96,20.27807673]
[1734975969020,1.6442,185.04,184.93,20.27807673]
[1734975969327,0.12549,185.03,184.9,13.5208]
[1734975970009,0.12549,185.03,184.88,20.27807673]
[1734975970320,0.12549,184.99,184.87,13.5227]
[1734975970498,20.12549,184.99,184.87,13.5227]
[1734975970696,20.0,184.95,184.87,13.5227]
[1734975971198,20.12549,184.99,184.86,20.27807673]
[1734975971708,20.0,184.95,184.86,20.27807673]
[1734975971907,20.0,184.95,184.87,20.27807673]
[1734975972203,43.902374,184.99,184.87,20.27807673]
[1734975974224,43.902374,184.99,184.86,13.5232]
[1734975974418,23.902374,184.97,184.83,33.80377673]
[1734975974620,23.776884,184.93,184.83,33.80377673]
[1734975974834,23.776884,184.93,184.82,20.27807673]
[1734975974835,5.29679,184.92,184.82,20.27807673]
[1734975975031,20.0,184.88,184.8,13.5278]
[1734975975221,0.12549,184.9,184.77,33.80807673]
[1734975975534,23.776884,184.86,184.74,20.27807673]
[1734975975757,23.776884,184.86,184.74,33.81037673]
[1734975976040,23.776884,184.86,184.75,20.27807673]
[1734975976247,0.12549,184.85,184.74,33.81037673]
[1734975976402,1.5636,184.87,184.76,20.27807673]
[1734975976601,1.5636,184.87,184.78,20.27807673]
[1734975976801,1.5636,184.87,184.81,20.27807673]
[1734975977045,1.5636,184.87,184.79,0.81142011]
[1734975977046,23.776884,184.91,184.79,0.81142011]
[1734975977201,23.776884,184.91,184.81,20.27807673]
[1734975978202,5.1989,184.92,184.83,20.27807673]
[1734975978925,5.1989,184.92,184.82,20.27807673]
[1734975979117,20.0,184.89,184.81,13.5274]
[1734975979433,20.0,184.89,184.79,20.27807673]
[1734975980621,20.0,184.85,184.76,20.27807673]
[1734975981333,0.12549,184.84,184.75,20.27807673]
[1734975981523,20.0,184.81,184.73,33.81127673]
[1734975981724,20.0,184.81,184.72,20.27807673]
[1734975981924,43.902374,184.8,184.7,20.27807673]
[1734975982231,43.902374,184.8,184.67,20.27807673]
[1734975982641,43.902374,184.8,184.68,20.27807673]
[1734975983140,43.902374,184.8,184.66,13.5382]
[1734975983325,43.902374,184.8,184.66,33.81627673]
[1734975983551,43.902374,184.8,184.68,20.27807673]
[1734975983727,43.902374,184.8,184.66,13.5382]
[1734975983728,43.902374,184.8,184.69,20.27807673]
[1734975983942,20.0,184.8,184.71,20.27807673]
[1734975984236,20.0,184.8,184.7,20.27807673]
[1734975984445,20.0,184.8,184.71,20.27807673]
[1734975984616,20.0,184.8,184.71,33.81257673]
[1734975985037,20.0,184.8,184.72,20.27807673]
[1734975985211,20.0,184.8,184.71,33.81257673]
[1734975985519,20.0,184.8,184.71,13.5345]
[1734975985942,20.0,184.8,184.69,20.27807673]
[1734975986123,20.0,184.76,184.67,20.27807673]
[1734975986443,20.0,184.76,184.64,0.81178492]
[1734975986444,20.0,184.72,184.65,20.27807673]
[1734975986816,5.195,184.83,184.65,20.27807673]
[1734975987125,0.12549,184.78,184.65,20.27807673]
[1734975987331,23.902374,184.78,184.65,20.27807673]
[1734975987638,23.902374,184.74,184.64,33.81787673]
[1734975987842,23.776884,184.74,184.64,33.81787673]
[1734975988016,23.902374,184.76,184.64,33.81787673]
[1734975988217,20.0,184.73,184.64,33.81787673]
[1734975988419,20.0,184.73,184.64,13.5398]
[1734975988726,20.0,184.73,184.64,20.27807673]
[1734975988933,23.902374,184.72,184.56,0.6834123]
[1734975989243,20.0,184.65,184.57,33.82287673]
[1734975989669,3.6077,184.64,184.56,0.6834123]
[1734975989854,23.776884,184.63,184.56,0.6834123]
[1734975990024,20.0,184.6,184.56,0.6834123]
[1734975990818,3.6077,184.64,184.56,0.6834123]
[1734975991754,23.902374,184.63,184.56,0.6834123]
[1734975991940,3.6077,184.64,184.56,0.6834123]
[1734975992150,3.6077,184.64,184.56,20.96148903]
[1734975992333,20.0,184.66,184.59,20.27807673]
[1734975992665,3.6077,184.69,184.62,20.27807673]
[1734975993024,1.5406,184.73,184.63,20.27807673]
[1734975993229,1.5406,184.73,184.62,20.27807673]
[1734975993451,1.5406,184.73,184.63,20.27807673]
[1734975993920,20.0,184.71,184.61,20.27807673]
[1734975995028,23.776884,184.7,184.59,14.35571843]
[1734975995218,23.776884,184.7,184.6,20.27807673]
[1734975996236,20.0,184.71,184.6,20.27807673]
[1734975996749,20.0,184.67,184.59,13.5435]
[1734975996952,23.776884,184.7,184.61,20.27807673]
[1734976000064,0.12549,184.69,184.59,33.82157673]
[1734976000233,20.0,184.67,184.59,33.82157673]
[1734976000844,20.0,184.67,184.59,13.5435]
[1734976001040,20.0,184.67,184.59,33.82157673]
[1734976001242,20.0,184.71,184.63,20.27807673]
[1734976003171,20.0,184.71,184.63,33.81817673]
[1734976004072,20.0,184.71,184.63,13.5401]
[1734976004372,20.0,184.71,184.63,33.81817673]
[1734976004669,20.0,184.71,184.65,33.81657673]
[1734976004832,20.0,184.78,184.67,20.27807673]
[1734976005036,20.0,184.78,184.66,20.27807673]
[1734976005245,0.12549,184.77,184.65,33.81657673]
[1734976005446,20.0,184.78,184.65,33.81657673]
[1734976005855,0.12549,184.77,184.65,33.81657673]
[1734976006056,5.152,184.81,184.66,20.27807673]
[1734976006257,0.12549,184.8,184.66,20.27807673]
[1734976006569,0.12549,184.8,184.67,13.5376]
[1734976006734,5.152,184.81,184.67,13.5376]
[1734976007239,20.0,184.78,184.67,13.5376]
[1734976007668,20.12549,184.73,184.61,13.542]
[1734976007861,20.12549,184.73,184.6,20.27807673]
[1734976008165,20.0,184.69,184.6,20.27807673]
[1734976008952,20.0,184.65,184.57,13.5447]
[1734976009269,3.6077,184.64,184.56,0.6834123]
[1734976010284,3.6077,184.64,184.57,20.27807673]
[1734976010644,3.6077,184.64,184.56,0.6834123]
[1734976010870,23.776884,184.63,184.56,0.6834123]
[1734976011086,20.0,184.6,184.56,0.6834123]
[1734976016187,3.6077,184.64,184.56,0.6834123]
[1734976016549,23.902374,184.63,184.56,0.6834123]
[1734976016748,3.6077,184.64,184.56,0.6834123]
[1734976019182,20.0,184.6,184.56,0.6834123]
[1734976019560,20.0,184.57,184.56,0.6834123]
[1734976023289,43.776884,184.57,184.56,0.6834123]
[1734976023623,20.0,184.57,184.56,0.6834123]
[1734976023885,1.6285,184.63,184.56,0.6834123]
[1734976024095,1.6285,184.63,184.57,20.27807673]
[1734976024254,1.6142,184.68,184.59,20.27807673]
[1734976024882,0.12549,184.67,184.56,22.60798903]
[1734976025587,20.0,184.64,184.56,22.60798903]
[1734976025887,20.0,184.64,184.59,20.27807673]
[1734976026064,20.0,184.64,184.58,20.27807673]
[1734976026579,1.6268,184.73,184.63,20.27807673]
[1734976026882,1.6268,184.73,184.59,20.27807673]
[1734976026883,5.1832,184.78,184.68,20.27807673]
[1734976027270,0.12549,184.77,184.64,20.27807673]
[1734976027476,0.12549,184.77,184.59,20.27807673]
[1734976027687,0.12549,184.75,184.59,20.27807673]
[1734976027993,20.0,184.72,184.59,20.27807673]
[1734976028189,20.0,184.68,184.59,20.27807673]
[1734976028576,20.0,184.72,184.59,20.27807673]
[1734976028774,20.0,184.68,184.59,20.27807673]
[1734976028974,20.0,184.68,184.61,20.27807673]
[1734976030574,5.1832,184.78,184.63,20.27807673]
[1734976030798,5.1832,184.78,184.61,20.27807673]
[1734976030998,0.12549,184.77,184.61,20.27807673]
[1734976031501,1.47849,184.77,184.61,20.27807673]
[1734976032214,23.902374,184.68,184.56,34.50708903]
[1734976032370,23.902374,184.64,184.56,0.6834123]
[1734976032706,20.0,184.65,184.56,20.96148903]
[1734976032876,20.0,184.68,184.58,20.27807673]
[1734976033289,20.0,184.68,184.6,20.27807673]
[1734976033696,20.0,184.68,184.59,20.27807673]
[1734976034008,23.902374,184.67,184.57,20.27807673]
[1734976034321,20.0,184.64,184.56,0.6834123]
[1734976034974,20.0,184.68,184.59,20.27807673]
[1734976035688,23.776884,184.68,184.59,20.27807673]
[1734976036605,3.6077,184.69,184.6,20.27807673]
[1734976036978,43.902374,184.68,184.57,33.82297673]
[1734976037706,43.902374,184.68,184.57,20.27807673]
[1734976038203,20.0,184.67,184.57,20.27807673]
[1734976038379,1.6581,184.71,184.61,20.27807673]
[1734976039080,1.6581,184.71,184.63,20.27807673]
[1734976039307,1.6581,184.71,184.62,20.27807673]
[1734976039504,1.6581,184.71,184.61,20.27807673]
[1734976040003,1.6581,184.71,184.62,20.27807673]
[1734976040205,1.5143,184.76,184.65,20.27807673]
[1734976040499,1.5143,184.76,184.68,20.27807673]
[1734976040699,1.5143,184.81,184.7,20.27807673]
[1734976040885,1.5143,184.81,184.71,20.27807673]
[1734976041090,1.5143,184.81,184.7,20.27807673]
[1734976041289,0.12549,184.8,184.7,20.27807673]
[1734976041599,0.12549,184.8,184.68,20.27807673]
[1734976041802,1.5143,184.81,184.68,20.27807673]
[1734976042206,1.5143,184.81,184.67,33.81537673]
[1734976042502,0.12549,184.8,184.68,20.27807673]
[1734976043204,23.902374,184.8,184.68,20.27807673]
[1734976043686,20.0,184.77,184.68,20.27807673]
[1734976044187,1.5143,184.81,184.71,20.27807673]
[1734976044398,1.5508,184.85,184.73,20.27807673]
[1734976044697,0.12549,184.84,184.68,20.27807673]
[1734976044885,0.12549,184.84,184.67,20.27807673]
[1734976045081,0.12549,184.84,184.66,20.27807673]
[1734976045602,0.12549,184.82,184.66,20.27807673]
[1734976045794,0.12549,184.78,184.65,33.81717673]
[1734976046126,20.0,184.75,184.67,20.27807673]
[1734976046295,2.9032,184.85,184.69,20.27807673]
[1734976046706,20.0,184.83,184.69,20.27807673]
[1734976047094,0.12549,184.82,184.7,20.27807673]
[1734976047299,0.12549,184.82,184.69,20.27807673]
[1734976047593,0.12549,184.82,184.7,20.27807673]
[1734976048099,20.0,184.79,184.7,20.27807673]
[1734976049120,20.0,184.83,184.72,20.27807673]
[1734976049600,20.0,184.83,184.71,20.27807673]
[1734976049807,20.0,184.83,184.7,33.81297673]
[1734976050006,0.12549,184.82,184.7,13.5349]
[1734976050314,0.12549,184.82,184.71,20.27807673]
[1734976050499,0.12549,184.82,184.7,33.81297673]
[1734976051091,20.0,184.79,184.72,20.27807673]
[1734976051810,20.0,184.83,184.72,20.27807673]
[1734976052222,20.0,184.83,184.72,33.81157673]
[1734976052915,20.0,184.79,184.72,13.5335]
[1734976053413,20.0,184.79,184.71,20.27807673]
[1734976053646,20.0,184.79,184.7,20.27807673]
[1734976054116,20.0,184.79,184.71,20.27807673]
[1734976054290,20.0,184.79,184.72,12.68409411]
[1734976054622,20.0,184.79,184.71,12.68409411]
[1734976054934,20.0,184.79,184.72,12.68409411]
[1734976055098,1.5508,184.85,184.74,12.68409411]
[1734976055299,20.0,184.83,184.74,12.68409411]
[1734976055509,20.0,184.83,184.72,12.68409411]
[1734976055891,20.0,184.83,184.73,12.68409411]
[1734976056401,20.0,184.83,184.73,26.21679411]
[1734976057121,1.5508,184.85,184.75,12.68409411]
[1734976057298,1.5508,184.85,184.79,12.68409411]
[1734976057504,1.5494,184.9,184.8,12.68409411]
[1734976057702,1.5494,184.9,184.79,12.68409411]
[1734976057894,1.5494,184.9,184.8,12.68409411]
[1734976058421,1.5494,184.9,184.79,12.68409411]
[1734976059017,1.5494,184.9,184.8,26.21149411]
[1734976059606,1.5494,184.9,184.81,12.68409411]
[1734976060321,1.5494,184.9,184.82,26.21069411]
[1734976062021,1.5494,184.9,184.84,12.68409411]
[1734976062226,3.6077,184.95,184.84,12.68409411]
[1734976062415,3.6077,184.95,184.82,12.68409411]
[1734976062416,25.519074,184.94,184.82,12.68409411]
[1734976062726,25.519074,184.94,184.8,12.68409411]
[1734976062924,26.870774,184.94,184.79,13.5288]
[1734976063102,26.870774,184.94,184.76,26.21509411]
[1734976063418,26.870774,184.94,184.76,13.531]
[1734976063629,0.12549,184.86,184.76,13.531]
[1734976064028,23.902374,184.86,184.76,13.531]
[1734976064212,23.902374,184.86,184.76,26.21509411]
[1734976064396,23.902374,184.86,184.76,13.531]
[1734976064596,1.511,184.85,184.76,13.531]
[1734976064801,20.0,184.81,184.73,26.21709411]
[1734976065023,20.0,184.81,184.7,14.25309411]
[1734976065228,23.902374,184.8,184.7,26.21929411]
[1734976065401,20.0,184.77,184.68,12.68409411]
[1734976066228,20.0,184.77,184.69,12.68409411]
[1734976066408,1.511,184.85,184.7,12.68409411]
[1734976066731,20.0,184.79,184.68,13.5369]
[1734976066908,20.0,184.79,184.68,26.22099411]
[1734976068026,0.12549,184.78,184.68,26.22099411]
[1734976068321,20.0,184.75,184.68,13.5369]
[1734976068543,20.0,184.75,184.66,20.30453514]
[1734976068697,20.0,184.75,184.67,20.30453514]
[1734976069101,20.0,184.79,184.7,20.30453514]
[1734976069404,0.12549,184.78,184.69,20.30453514]
[1734976069602,20.0,184.79,184.7,20.30453514]
[1734976069819,1.511,184.85,184.72,20.30453514]
[1734976070226,1.511,184.85,184.75,20.30453514]
[1734976070534,0.12549,184.84,184.75,33.83613514]
[1734976070829,0.12549,184.84,184.75,13.5316]
[1734976071833,1.511,184.85,184.75,13.5316]
[1734976072026,20.0,184.83,184.75,13.5316]
[1734976072829,0.12549,184.82,184.72,33.83823514]
[1734976073132,0.12549,184.82,184.73,20.30453514]
[1734976073311,0.12549,184.82,184.74,20.30453514]
[1734976073508,20.0,184.83,184.76,20.30453514]
[1734976074330,0.12549,184.82,184.74,20.30453514]
[1734976074535,23.902374,184.82,184.74,20.30453514]
[1734976075429,20.0,184.83,184.74,20.30453514]
[1734976075633,20.0,184.83,184.74,33.83633514]
[1734976076342,20.0,184.83,184.76,20.30453514]
[1734976079640,20.0,184.83,184.76,33.83503514]
[1734976080937,0.12549,184.82,184.73,13.533]
[1734976081119,23.902374,184.82,184.7,20.30453514]
[1734976081340,0.12549,184.78,184.69,13.5356]
[1734976081626,0.12549,184.78,184.69,33.84013514]
[1734976081823,0.12549,184.78,184.7,20.30453514]
[1734976082244,0.12549,184.78,184.69,33.84013514]
[1734976083316,0.12549,184.78,184.7,20.30453514]
[1734976084037,0.12549,184.78,184.69,33.84013514]
[1734976084341,0.12549,184.78,184.69,13.5356]
[1734976084739,23.776884,184.82,184.71,20.30453514]
[1734976085036,1.511,184.85,184.76,20.30453514]
[1734976085735,1.511,184.85,184.77,20.30453514]
[1734976086147,20.0,184.83,184.77,20.30453514]
[1734976087413,1.511,184.85,184.77,20.30453514]
[1734976090359,1.511,184.85,184.74,12.67729024]
[1734976090360,23.902374,184.84,184.74,12.67729024]
[1734976090919,23.902374,184.84,184.72,13.5336]
[1734976091176,0.12549,184.78,184.69,26.21309024]
[1734976091514,23.902374,184.78,184.69,26.21309024]
[1734976092423,20.0,184.82,184.69,26.21309024]
[1734976092621,23.776884,184.81,184.71,12.67729024]
[1734976092822,20.0,184.82,184.72,12.67729024]
[1734976093245,20.0,184.82,184.74,12.67729024]
[1734976093441,3.6077,184.83,184.75,12.67729024]
[1734976093643,1.511,184.85,184.76,12.67729024]
[1734976093838,0.12549,184.84,184.77,12.67729024]
[1734976094230,1.511,184.85,184.79,20.2811328]
[1734976094428,1.6121,184.9,184.8,20.2811328]
[1734976094630,1.6121,184.9,184.79,20.2811328]
[1734976094829,1.6121,184.9,184.78,20.2811328]
[1734976095041,0.12549,184.89,184.78,20.2811328]
[1734976095958,0.12549,184.87,184.77,33.8111328]
[1734976096137,20.0,184.86,184.77,33.8111328]
[1734976096544,0.12549,184.88,184.77,33.8111328]
[1734976096745,20.0,184.86,184.77,33.8111328]
[1734976097066,20.0,184.86,184.78,20.2811328]
[1734976097243,0.12549,184.85,184.78,20.2811328]
[1734976097932,23.776884,184.89,184.78,20.2811328]
[1734976098257,20.0,184.86,184.78,20.2811328]
[1734976098459,1.6121,184.9,184.8,20.2811328]
[1734976099129,0.12549,184.89,184.81,20.2811328]
[1734976099440,0.12549,184.89,184.8,20.2811328]
[1734976100324,0.12549,184.85,184.76,20.2811328]
[1734976100548,0.12549,184.85,184.75,33.8128328]
[1734976100769,0.12549,184.81,184.75,13.5317]
[1734976101052,0.12549,184.81,184.68,20.2811328]
[1734976101053,20.0,184.77,184.68,20.2811328]
[1734976101242,0.12549,184.76,184.68,20.2811328]
[1734976101421,23.902374,184.76,184.66,28.71860915]
[1734976101626,20.0,184.73,184.66,8.43747635]